[Event "Early-Titled-Tuesday-Blitz-June-18-2024"]
[Site "Chess.com"]
[Date "2024.06.18"]
[Round "5"]
[White "Vaathi_Coming"]
[Black "Yeritsyaan"]
[Result "1-0"]
[WhiteElo "2891"]
[BlackElo "2675"]
[TimeControl "180+1"]
[EndTime "8:57:40 PDT"]
[Termination "Vaathi_Coming won by resignation"]

1. c4 {[%clk 0:03:00.9]} 1... Nf6 {[%clk 0:02:59.2]} 2. Nc3 {[%clk 0:03:00.5]}
2... g6 {[%clk 0:02:58.6]} 3. g3 {[%clk 0:02:59]} 3... Bg7 {[%clk 0:02:58.4]} 4.
Bg2 {[%clk 0:02:59.8]} 4... O-O {[%clk 0:02:59]} 5. Nh3 {[%clk 0:02:59.9]} 5...
c6 {[%clk 0:02:56.9]} 6. O-O {[%clk 0:02:58]} 6... d5 {[%clk 0:02:57.4]} 7. cxd5
{[%clk 0:02:58.3]} 7... cxd5 {[%clk 0:02:58.3]} 8. d4 {[%clk 0:02:59.2]} 8...
Nc6 {[%clk 0:02:57.9]} 9. Nf4 {[%clk 0:02:59.5]} 9... e6 {[%clk 0:02:53.4]} 10.
e3 {[%clk 0:02:44.8]} 10... b6 {[%clk 0:02:52]} 11. b3 {[%clk 0:02:41.4]} 11...
Ba6 {[%clk 0:02:48.6]} 12. Re1 {[%clk 0:02:41.8]} 12... Rc8 {[%clk 0:02:47.3]}
13. Ba3 {[%clk 0:02:42.1]} 13... Re8 {[%clk 0:02:47]} 14. Rc1 {[%clk 0:02:42.8]}
14... Bf8 {[%clk 0:02:36.5]} 15. Bxf8 {[%clk 0:02:41.3]} 15... Rxf8 {[%clk
0:02:37.4]} 16. h4 {[%clk 0:02:38.3]} 16... Qd6 {[%clk 0:02:30]} 17. g4 {[%clk
0:02:20.8]} 17... Kg7 {[%clk 0:01:23.2]} 18. g5 {[%clk 0:02:19.3]} 18... Ng8
{[%clk 0:01:21.8]} 19. Qg4 {[%clk 0:02:12.4]} 19... Nge7 {[%clk 0:01:20.2]} 20.
e4 {[%clk 0:02:07.7]} 20... Nxd4 {[%clk 0:01:12.1]} 21. exd5 {[%clk 0:02:01.3]}
21... e5 {[%clk 0:01:02.9]} 22. Ne4 {[%clk 0:01:47.6]} 22... Rxc1 {[%clk
0:00:47.4]} 23. Rxc1 {[%clk 0:01:41.2]} 23... Qa3 {[%clk 0:00:45.1]} 24. Rd1
{[%clk 0:01:24.7]} 24... Nef5 {[%clk 0:00:43.4]} 25. Nd3 {[%clk 0:01:17.9]}
25... Bxd3 {[%clk 0:00:43.2]} 26. Rxd3 {[%clk 0:01:17.7]} 26... Rc8 {[%clk
0:00:41.7]} 27. d6 {[%clk 0:00:56.8]} 27... Rc1+ {[%clk 0:00:34]} 28. Kh2 {[%clk
0:00:56.7]} 28... Nxd6 {[%clk 0:00:32.4]} 29. Qg3 {[%clk 0:00:57.1]} 29... Qa5
{[%clk 0:00:07.9]} 30. Nxd6 {[%clk 0:00:45]} 30... Qe1 {[%clk 0:00:08.5]} 31.
Re3 {[%clk 0:00:45]} 31... Qg1+ {[%clk 0:00:08.3]} 32. Kh3 {[%clk 0:00:45.6]}
32... Nf5 {[%clk 0:00:03.8]} 33. Qxe5+ {[%clk 0:00:40.3]} 33... Kg8 {[%clk
0:00:03.9]} 34. Qe8+ {[%clk 0:00:38.7]} 34... Kg7 {[%clk 0:00:04.8]} 35. Qxf7+
{[%clk 0:00:38.9]} 1-0

[Event "Early-Titled-Tuesday-Blitz-June-18-2024"]
[Site "Chess.com"]
[Date "2024.06.18"]
[Round "5"]
[White "Vengea_nce"]
[Black "KuzubovYuriy"]
[Result "0-1"]
[WhiteElo "2656"]
[BlackElo "2873"]
[TimeControl "180+1"]
[EndTime "8:57:40 PDT"]
[Termination "KuzubovYuriy won by resignation"]

1. e4 {[%clk 0:02:59.3]} 1... c5 {[%clk 0:02:57]} 2. Nf3 {[%clk 0:02:59.4]} 2...
Nc6 {[%clk 0:02:57.5]} 3. Bb5 {[%clk 0:02:58.5]} 3... d6 {[%clk 0:02:56.8]} 4.
O-O {[%clk 0:02:56.8]} 4... Bd7 {[%clk 0:02:57.3]} 5. Re1 {[%clk 0:02:56]} 5...
Nf6 {[%clk 0:02:57.6]} 6. Nc3 {[%clk 0:02:55.4]} 6... g6 {[%clk 0:02:56.9]} 7.
Bxc6 {[%clk 0:02:49.8]} 7... Bxc6 {[%clk 0:02:56.5]} 8. e5 {[%clk 0:02:50.3]}
8... dxe5 {[%clk 0:02:55.2]} 9. Nxe5 {[%clk 0:02:49.7]} 9... Rc8 {[%clk
0:02:55.7]} 10. d3 {[%clk 0:02:47.3]} 10... Bg7 {[%clk 0:02:55.5]} 11. Bg5
{[%clk 0:02:45.9]} 11... O-O {[%clk 0:02:54.6]} 12. Nxc6 {[%clk 0:02:45.4]}
12... Rxc6 {[%clk 0:02:53.8]} 13. Qf3 {[%clk 0:02:43.1]} 13... h6 {[%clk
0:02:51.3]} 14. Be3 {[%clk 0:02:39]} 14... e6 {[%clk 0:02:48.5]} 15. Rad1 {[%clk
0:02:35.7]} 15... Qe7 {[%clk 0:02:40.1]} 16. Bf4 {[%clk 0:02:24.9]} 16... Nd7
{[%clk 0:02:28.1]} 17. Ne2 {[%clk 0:02:20.8]} 17... Nb6 {[%clk 0:02:18.3]} 18.
c3 {[%clk 0:02:18.9]} 18... Nd5 {[%clk 0:02:17.6]} 19. Bg3 {[%clk 0:02:17.1]}
19... Rd8 {[%clk 0:02:15.9]} 20. d4 {[%clk 0:02:14.9]} 20... Rb6 {[%clk
0:02:07.1]} 21. dxc5 {[%clk 0:02:05.9]} 21... Rxb2 {[%clk 0:02:00.7]} 22. Bd6
{[%clk 0:02:02.9]} 22... Qf6 {[%clk 0:01:57]} 23. c4 {[%clk 0:01:49.9]} 23...
Qxf3 {[%clk 0:01:54.4]} 24. gxf3 {[%clk 0:01:50.8]} 24... Nb4 {[%clk 0:01:48.2]}
25. Rb1 {[%clk 0:01:36.6]} 25... Nd3 {[%clk 0:01:46.6]} 26. Rxb2 {[%clk
0:01:34]} 26... Nxb2 {[%clk 0:01:47.5]} 27. Rb1 {[%clk 0:01:32.4]} 27... Nxc4
{[%clk 0:01:42.8]} 28. Rxb7 {[%clk 0:01:32]} 28... Nxd6 {[%clk 0:01:42.2]} 29.
cxd6 {[%clk 0:01:32.2]} 29... Rxd6 {[%clk 0:01:42.1]} 30. Rxa7 {[%clk
0:01:32.2]} 30... Rd2 {[%clk 0:01:41.9]} 31. Kf1 {[%clk 0:01:30.6]} 31... Bf6
{[%clk 0:01:38.4]} 32. a4 {[%clk 0:01:27.3]} 32... Ra2 {[%clk 0:01:38.1]} 33. a5
{[%clk 0:01:26.7]} 33... g5 {[%clk 0:01:35.9]} 34. a6 {[%clk 0:01:25.5]} 34...
Kg7 {[%clk 0:01:35.8]} 35. Ng3 {[%clk 0:01:22]} 35... Bd4 {[%clk 0:01:34.1]} 36.
Rd7 {[%clk 0:01:12.3]} 36... Bxf2 {[%clk 0:01:14.1]} 37. Rd6 {[%clk 0:01:02.8]}
37... Bxg3 {[%clk 0:01:11.6]} 38. hxg3 {[%clk 0:01:02]} 38... h5 {[%clk
0:01:11.1]} 39. Kg1 {[%clk 0:01:01.3]} 39... Kg6 {[%clk 0:01:09.9]} 40. Rc6
{[%clk 0:01:01.3]} 40... Kf5 {[%clk 0:01:08.1]} 41. Rc5+ {[%clk 0:01:01.2]}
41... e5 {[%clk 0:01:07.4]} 42. Rc7 {[%clk 0:01:00.6]} 42... f6 {[%clk
0:01:07.2]} 43. Rc6 {[%clk 0:01:00.8]} 43... h4 {[%clk 0:00:56.6]} 44. gxh4
{[%clk 0:01:00.1]} 44... gxh4 {[%clk 0:00:56.2]} 45. Kf1 {[%clk 0:00:58.7]}
45... h3 {[%clk 0:00:55.1]} 46. Kg1 {[%clk 0:00:59]} 46... Ra3 {[%clk
0:00:53.9]} 47. Kf2 {[%clk 0:00:47.8]} 47... h2 {[%clk 0:00:52.9]} 48. Kg2
{[%clk 0:00:47.9]} 48... Rxf3 {[%clk 0:00:51.8]} 49. Kxh2 {[%clk 0:00:46.6]}
49... Ra3 {[%clk 0:00:51]} 50. Kg2 {[%clk 0:00:46.4]} 50... e4 {[%clk 0:00:50]}
51. Kf2 {[%clk 0:00:44.2]} 51... Ke5 {[%clk 0:00:49.9]} 52. Ke2 {[%clk
0:00:44.3]} 52... f5 {[%clk 0:00:49.8]} 53. Kf2 {[%clk 0:00:44.2]} 53... Kf4
{[%clk 0:00:49.7]} 54. Ke2 {[%clk 0:00:42.6]} 54... Ra2+ {[%clk 0:00:49.5]} 55.
Ke1 {[%clk 0:00:42.8]} 55... Kf3 {[%clk 0:00:48.6]} 0-1

[Event "Early-Titled-Tuesday-Blitz-June-18-2024"]
[Site "Chess.com"]
[Date "2024.06.18"]
[Round "5"]
[White "jcibarra"]
[Black "ViIIagra"]
[Result "1-0"]
[WhiteElo "3017"]
[BlackElo "2897"]
[TimeControl "180+1"]
[EndTime "8:57:41 PDT"]
[Termination "jcibarra won by resignation"]

1. e4 {[%clk 0:03:00.9]} 1... d6 {[%clk 0:03:00.2]} 2. d4 {[%clk 0:03:00.3]}
2... Nf6 {[%clk 0:03:00.9]} 3. Nc3 {[%clk 0:03:00.4]} 3... e5 {[%clk 0:03:01.7]}
4. Nf3 {[%clk 0:03:00]} 4... Nbd7 {[%clk 0:03:01.5]} 5. Bc4 {[%clk 0:03:00.4]}
5... h6 {[%clk 0:03:00.8]} 6. a4 {[%clk 0:02:58.8]} 6... Be7 {[%clk 0:03:00.9]}
7. O-O {[%clk 0:02:59.2]} 7... O-O {[%clk 0:03:01.4]} 8. Re1 {[%clk 0:02:56.8]}
8... c6 {[%clk 0:03:01.5]} 9. Ba2 {[%clk 0:02:49]} 9... Re8 {[%clk 0:02:58.9]}
10. h3 {[%clk 0:02:46.2]} 10... Bf8 {[%clk 0:02:58.9]} 11. Be3 {[%clk
0:02:46.8]} 11... Qc7 {[%clk 0:02:48]} 12. Qd3 {[%clk 0:02:46.5]} 12... exd4
{[%clk 0:02:12.3]} 13. Bxd4 {[%clk 0:02:46.4]} 13... Ne5 {[%clk 0:02:11.9]} 14.
Qe3 {[%clk 0:02:46.5]} 14... Nfd7 {[%clk 0:02:03.5]} 15. Rad1 {[%clk 0:02:39.7]}
15... b6 {[%clk 0:01:57.6]} 16. Nd2 {[%clk 0:02:31.8]} 16... Bb7 {[%clk
0:01:39.1]} 17. f4 {[%clk 0:02:31.8]} 17... Ng6 {[%clk 0:01:36.7]} 18. Qg3
{[%clk 0:02:32.3]} 18... Nh8 {[%clk 0:01:25.9]} 19. Nc4 {[%clk 0:02:30.4]} 19...
Nc5 {[%clk 0:01:22.9]} 20. f5 {[%clk 0:01:57.5]} 20... Rad8 {[%clk 0:01:22.4]}
21. Ne3 {[%clk 0:01:16.6]} 21... Nd7 {[%clk 0:01:15.9]} 22. Ng4 {[%clk
0:01:15.5]} 22... Kh7 {[%clk 0:01:09.2]} 23. Rd3 {[%clk 0:00:54.2]} 23... Ne5
{[%clk 0:00:57.5]} 24. Nxe5 {[%clk 0:00:41.4]} 24... dxe5 {[%clk 0:00:58.4]} 25.
Bxe5 {[%clk 0:00:41.7]} 25... Rxd3 {[%clk 0:00:34]} 26. Bxc7 {[%clk 0:00:41.3]}
26... Rxg3 {[%clk 0:00:25.9]} 27. Bxg3 {[%clk 0:00:42.2]} 27... g6 {[%clk
0:00:26.4]} 28. Rd1 {[%clk 0:00:37.8]} 28... gxf5 {[%clk 0:00:22.1]} 29. exf5
{[%clk 0:00:38.5]} 29... Bc8 {[%clk 0:00:22.2]} 30. Rf1 {[%clk 0:00:34.6]} 30...
Bc5+ {[%clk 0:00:22.5]} 31. Bf2 {[%clk 0:00:33.8]} 31... Bb4 {[%clk 0:00:22.9]}
32. Bd4 {[%clk 0:00:33.7]} 32... Bc5 {[%clk 0:00:04]} 33. Bxc5 {[%clk
0:00:32.2]} 33... bxc5 {[%clk 0:00:04.9]} 34. Bc4 {[%clk 0:00:32.4]} 34... Kg7
{[%clk 0:00:05.1]} 35. f6+ {[%clk 0:00:32.1]} 35... Kg6 {[%clk 0:00:05.3]} 36.
Bd3+ {[%clk 0:00:32.3]} 36... Kg5 {[%clk 0:00:04.3]} 37. Ne4+ {[%clk 0:00:32.2]}
37... Kh4 {[%clk 0:00:04.4]} 38. Rf4+ {[%clk 0:00:29.1]} 1-0

[Event "Early-Titled-Tuesday-Blitz-June-18-2024"]
[Site "Chess.com"]
[Date "2024.06.18"]
[Round "5"]
[White "AttilaTurzo"]
[Black "Kors67"]
[Result "1-0"]
[WhiteElo "2429"]
[BlackElo "2284"]
[TimeControl "180+1"]
[EndTime "8:57:44 PDT"]
[Termination "AttilaTurzo won on time"]

1. d4 {[%clk 0:02:46.6]} 1... Nf6 {[%clk 0:02:59.5]} 2. c4 {[%clk 0:02:46.3]}
2... c5 {[%clk 0:02:59.5]} 3. d5 {[%clk 0:02:46.1]} 3... b5 {[%clk 0:02:59.9]}
4. cxb5 {[%clk 0:02:46.8]} 4... a6 {[%clk 0:03:00.2]} 5. bxa6 {[%clk 0:02:46.1]}
5... g6 {[%clk 0:03:00.5]} 6. Nc3 {[%clk 0:02:45.6]} 6... Bxa6 {[%clk
0:03:00.9]} 7. e4 {[%clk 0:02:42.6]} 7... Bxf1 {[%clk 0:03:00.4]} 8. Kxf1 {[%clk
0:02:43.5]} 8... d6 {[%clk 0:03:00.7]} 9. g3 {[%clk 0:02:43.6]} 9... Bg7 {[%clk
0:03:01.1]} 10. Kg2 {[%clk 0:02:44]} 10... O-O {[%clk 0:03:01.1]} 11. Nf3 {[%clk
0:02:44.4]} 11... Nbd7 {[%clk 0:03:01.3]} 12. Re1 {[%clk 0:02:41.6]} 12... Qb6
{[%clk 0:03:01.7]} 13. a4 {[%clk 0:02:40.8]} 13... Rfb8 {[%clk 0:02:48.4]} 14.
Ra3 {[%clk 0:02:40.2]} 14... Ne8 {[%clk 0:02:37.4]} 15. Nd2 {[%clk 0:02:33.4]}
15... Qb4 {[%clk 0:02:33.4]} 16. Na2 {[%clk 0:02:14]} 16... Qd4 {[%clk
0:02:25.1]} 17. b3 {[%clk 0:02:06.7]} 17... Ne5 {[%clk 0:02:02.7]} 18. Nf3
{[%clk 0:01:58.9]} 18... Nxf3 {[%clk 0:01:16.9]} 19. Kxf3 {[%clk 0:01:54.3]}
19... Qa1 {[%clk 0:00:57]} 20. Kg2 {[%clk 0:01:40.7]} 20... Bb2 {[%clk
0:00:52.5]} 21. Bxb2 {[%clk 0:01:11.2]} 21... Qxb2 {[%clk 0:00:53.4]} 22. Qc1
{[%clk 0:01:10]} 22... Rxb3 {[%clk 0:00:50.2]} 23. Qxb2 {[%clk 0:01:07.7]} 23...
Rxb2 {[%clk 0:00:49.2]} 24. Nc3 {[%clk 0:01:07.6]} 24... Ra5 {[%clk 0:00:34.7]}
25. e5 {[%clk 0:01:05.2]} 25... Kf8 {[%clk 0:00:34.3]} 26. exd6 {[%clk
0:01:01.8]} 26... Nxd6 {[%clk 0:00:31.9]} 27. Rb1 {[%clk 0:00:48.3]} 27... Rxb1
{[%clk 0:00:22.7]} 28. Nxb1 {[%clk 0:00:49.2]} 28... c4 {[%clk 0:00:16.3]} 29.
Nc3 {[%clk 0:00:48.3]} 29... Nf5 {[%clk 0:00:05.1]} 30. Kf3 {[%clk 0:00:44.9]}
30... Nd4+ {[%clk 0:00:03]} 31. Ke4 {[%clk 0:00:45.1]} 31... Nc2 {[%clk
0:00:02.7]} 32. Ra2 {[%clk 0:00:44.9]} 32... Nb4 {[%clk 0:00:02.6]} 33. Rb2
{[%clk 0:00:41.8]} 33... Nd3 {[%clk 0:00:03.1]} 34. Rb8+ {[%clk 0:00:41]} 34...
Kg7 {[%clk 0:00:02.5]} 35. f4 {[%clk 0:00:39.2]} 35... h5 {[%clk 0:00:01]} 36.
Kd4 {[%clk 0:00:38.4]} 36... Nc5 {[%clk 0:00:01]} 37. Rb5 {[%clk 0:00:33.7]} 1-0

[Event "Early-Titled-Tuesday-Blitz-June-18-2024"]
[Site "Chess.com"]
[Date "2024.06.18"]
[Round "5"]
[White "laskakid"]
[Black "BM223344"]
[Result "1-0"]
[WhiteElo "2396"]
[BlackElo "2574"]
[TimeControl "180+1"]
[EndTime "8:57:47 PDT"]
[Termination "laskakid won by checkmate"]

1. Nf3 {[%clk 0:03:00.9]} 1... Nf6 {[%clk 0:02:59.2]} 2. b3 {[%clk 0:03:01]}
2... g6 {[%clk 0:02:59.3]} 3. Bb2 {[%clk 0:03:01]} 3... Bg7 {[%clk 0:02:59.9]}
4. g3 {[%clk 0:03:01.4]} 4... d6 {[%clk 0:03:00.1]} 5. d4 {[%clk 0:03:00.6]}
5... O-O {[%clk 0:02:59.5]} 6. Bg2 {[%clk 0:03:00.7]} 6... c5 {[%clk 0:02:53.8]}
7. c4 {[%clk 0:02:56.5]} 7... a5 {[%clk 0:02:43.1]} 8. O-O {[%clk 0:02:52.3]}
8... Bf5 {[%clk 0:02:36]} 9. Nc3 {[%clk 0:02:48.2]} 9... Nc6 {[%clk 0:02:31.6]}
10. d5 {[%clk 0:02:35.9]} 10... Nb4 {[%clk 0:02:02.5]} 11. a3 {[%clk 0:02:08.5]}
11... Na6 {[%clk 0:02:00.7]} 12. Nd2 {[%clk 0:02:04.8]} 12... Qd7 {[%clk
0:01:56.4]} 13. e4 {[%clk 0:02:00.2]} 13... Bh3 {[%clk 0:01:57]} 14. Qe2 {[%clk
0:01:55.2]} 14... Rae8 {[%clk 0:01:49.6]} 15. Rad1 {[%clk 0:01:44.7]} 15... e6
{[%clk 0:01:46]} 16. Bxh3 {[%clk 0:01:41.4]} 16... Qe7 {[%clk 0:01:43.2]} 17.
dxe6 {[%clk 0:01:34.7]} 17... fxe6 {[%clk 0:01:44.1]} 18. Nf3 {[%clk 0:01:30.5]}
18... Nh5 {[%clk 0:01:41.1]} 19. Kg2 {[%clk 0:01:16.2]} 19... Nb8 {[%clk
0:01:41.1]} 20. Nb5 {[%clk 0:01:09.9]} 20... Bxb2 {[%clk 0:01:40.7]} 21. Qxb2
{[%clk 0:01:10]} 21... Rd8 {[%clk 0:01:40.4]} 22. e5 {[%clk 0:01:04.3]} 22... d5
{[%clk 0:01:38.6]} 23. Nd6 {[%clk 0:00:58.5]} 23... d4 {[%clk 0:01:37]} 24. Qe2
{[%clk 0:00:55]} 24... Nc6 {[%clk 0:01:37]} 25. Qe4 {[%clk 0:00:54.3]} 25... Ng7
{[%clk 0:01:24.6]} 26. Bg4 {[%clk 0:00:48.5]} 26... Nf5 {[%clk 0:01:24.6]} 27.
Bxf5 {[%clk 0:00:45.2]} 27... exf5 {[%clk 0:01:23.8]} 28. Qf4 {[%clk 0:00:43.9]}
28... Kg7 {[%clk 0:01:22]} 29. h4 {[%clk 0:00:43.5]} 29... h6 {[%clk 0:01:20]}
30. Rfe1 {[%clk 0:00:38.8]} 30... Qe6 {[%clk 0:01:20.4]} 31. Nxb7 {[%clk
0:00:35.3]} 31... Rb8 {[%clk 0:01:18.7]} 32. Nxc5 {[%clk 0:00:35.5]} 32... Qe7
{[%clk 0:01:19]} 33. Nxd4 {[%clk 0:00:30.4]} 33... Nxd4 {[%clk 0:01:12.4]} 34.
Qxd4 {[%clk 0:00:29.8]} 34... Rfd8 {[%clk 0:01:12.8]} 35. e6+ {[%clk 0:00:24.4]}
35... Rxd4 {[%clk 0:01:11.4]} 36. Rxd4 {[%clk 0:00:23]} 36... Kg8 {[%clk
0:01:09.6]} 37. Nd3 {[%clk 0:00:18.2]} 37... Qb7+ {[%clk 0:01:09.1]} 38. Kg1
{[%clk 0:00:17.6]} 38... Qxb3 {[%clk 0:01:09.5]} 39. e7 {[%clk 0:00:16.2]} 39...
Re8 {[%clk 0:01:09.4]} 40. Rd8 {[%clk 0:00:16.2]} 40... Kf7 {[%clk 0:01:09.6]}
41. Ne5+ {[%clk 0:00:13.8]} 41... Kxe7 {[%clk 0:01:09.6]} 42. Nc6+ {[%clk
0:00:13.8]} 42... Kf7 {[%clk 0:01:09.8]} 43. Rdxe8 {[%clk 0:00:14]} 43... Qxa3
{[%clk 0:00:55.7]} 44. R1e7+ {[%clk 0:00:11.3]} 44... Qxe7 {[%clk 0:00:53.8]}
45. Rxe7+ {[%clk 0:00:11.3]} 45... Kf6 {[%clk 0:00:54.7]} 46. Ra7 {[%clk
0:00:11.2]} 46... a4 {[%clk 0:00:54]} 47. Rxa4 {[%clk 0:00:11.3]} 47... g5
{[%clk 0:00:54.9]} 48. Nb4 {[%clk 0:00:11]} 48... gxh4 {[%clk 0:00:55.2]} 49. c5
{[%clk 0:00:11.1]} 49... hxg3 {[%clk 0:00:55.2]} 50. fxg3 {[%clk 0:00:11.4]}
50... Ke5 {[%clk 0:00:55.6]} 51. c6 {[%clk 0:00:11.4]} 51... Kd6 {[%clk
0:00:55.8]} 52. Ra7 {[%clk 0:00:11.5]} 52... Kc5 {[%clk 0:00:56.3]} 53. c7
{[%clk 0:00:11.3]} 53... Kb6 {[%clk 0:00:57.2]} 54. c8=Q {[%clk 0:00:11.4]}
54... Kxa7 {[%clk 0:00:58.1]} 55. Qc6 {[%clk 0:00:09.6]} 55... f4 {[%clk
0:00:57.8]} 56. Nd3 {[%clk 0:00:09.5]} 56... fxg3 {[%clk 0:00:58]} 57. Nc5
{[%clk 0:00:09.8]} 57... g2 {[%clk 0:00:58]} 58. Qb7# {[%clk 0:00:10.1]} 1-0

[Event "Early-Titled-Tuesday-Blitz-June-18-2024"]
[Site "Chess.com"]
[Date "2024.06.18"]
[Round "5"]
[White "Defenstrator"]
[Black "GAusal"]
[Result "0-1"]
[WhiteElo "2379"]
[BlackElo "2204"]
[TimeControl "180+1"]
[EndTime "8:57:48 PDT"]
[Termination "GAusal won by resignation"]

1. e4 {[%clk 0:03:00.1]} 1... c5 {[%clk 0:02:59.3]} 2. Ne2 {[%clk 0:03:00.4]}
2... e6 {[%clk 0:02:59.5]} 3. f4 {[%clk 0:02:57.6]} 3... Nc6 {[%clk 0:02:57.4]}
4. c3 {[%clk 0:02:55.9]} 4... g6 {[%clk 0:02:56]} 5. d4 {[%clk 0:02:56]} 5...
cxd4 {[%clk 0:02:55.7]} 6. cxd4 {[%clk 0:02:56.7]} 6... d5 {[%clk 0:02:55.9]} 7.
e5 {[%clk 0:02:53.8]} 7... h5 {[%clk 0:02:53.8]} 8. g3 {[%clk 0:02:49]} 8...
Nge7 {[%clk 0:02:52.8]} 9. Nbc3 {[%clk 0:02:44.8]} 9... Nf5 {[%clk 0:02:52.3]}
10. Bg2 {[%clk 0:02:37.2]} 10... Qb6 {[%clk 0:02:51.5]} 11. Na4 {[%clk
0:02:31.8]} 11... Qa5+ {[%clk 0:02:48.2]} 12. Kf2 {[%clk 0:02:08.2]} 12... Be7
{[%clk 0:02:25.1]} 13. h3 {[%clk 0:02:03.8]} 13... O-O {[%clk 0:01:30.5]} 14. g4
{[%clk 0:02:02.9]} 14... b5 {[%clk 0:01:04.5]} 15. Nac3 {[%clk 0:01:45.6]} 15...
Bh4+ {[%clk 0:01:01.2]} 16. Kg1 {[%clk 0:01:39.9]} 16... Ng3 {[%clk 0:00:57.8]}
17. Nxg3 {[%clk 0:01:34.8]} 17... Bxg3 {[%clk 0:00:56.9]} 18. gxh5 {[%clk
0:01:33.6]} 18... b4 {[%clk 0:00:53.8]} 19. Nb1 {[%clk 0:01:15]} 19... Qb6
{[%clk 0:00:48.6]} 20. Be3 {[%clk 0:01:12.8]} 20... g5 {[%clk 0:00:45.2]} 21.
Qg4 {[%clk 0:00:46.3]} 21... Bxf4 {[%clk 0:00:40.7]} 22. Bf2 {[%clk 0:00:41.1]}
22... Kh7 {[%clk 0:00:28.5]} 23. h4 {[%clk 0:00:32]} 23... f5 {[%clk 0:00:25]}
24. exf6 {[%clk 0:00:30.2]} 24... e5 {[%clk 0:00:22]} 25. Qe2 {[%clk 0:00:26.3]}
25... Nxd4 {[%clk 0:00:20.9]} 26. Qd1 {[%clk 0:00:15.9]} 26... Qxf6 {[%clk
0:00:19.5]} 27. hxg5 {[%clk 0:00:12.7]} 27... Qxg5 {[%clk 0:00:19.1]} 28. Bxd4
{[%clk 0:00:12.4]} 28... exd4 {[%clk 0:00:15.7]} 29. Nd2 {[%clk 0:00:06.4]}
29... Be3+ {[%clk 0:00:15.3]} 30. Kh2 {[%clk 0:00:06.8]} 30... Qh4+ {[%clk
0:00:14.3]} 0-1

[Event "Early-Titled-Tuesday-Blitz-June-18-2024"]
[Site "Chess.com"]
[Date "2024.06.18"]
[Round "5"]
[White "axvesik"]
[Black "Gumugama"]
[Result "1-0"]
[WhiteElo "2558"]
[BlackElo "2274"]
[TimeControl "180+1"]
[EndTime "8:57:51 PDT"]
[Termination "axvesik won by resignation"]

1. e4 {[%clk 0:03:00.9]} 1... c5 {[%clk 0:01:43.5]} 2. Nf3 {[%clk 0:02:59.8]}
2... d6 {[%clk 0:01:42.6]} 3. d4 {[%clk 0:02:59.7]} 3... cxd4 {[%clk 0:01:42.7]}
4. Nxd4 {[%clk 0:03:00.6]} 4... e5 {[%clk 0:01:42.8]} 5. Bb5+ {[%clk 0:02:59.1]}
5... Nd7 {[%clk 0:01:42.2]} 6. Nf5 {[%clk 0:02:57.1]} 6... a6 {[%clk 0:01:36.3]}
7. Ba4 {[%clk 0:02:39.1]} 7... b5 {[%clk 0:01:29]} 8. Bb3 {[%clk 0:02:38.7]}
8... Nb6 {[%clk 0:01:22.5]} 9. Ne3 {[%clk 0:02:26.7]} 9... Nf6 {[%clk
0:01:21.2]} 10. O-O {[%clk 0:02:24.8]} 10... Bb7 {[%clk 0:01:18.9]} 11. f3
{[%clk 0:02:22.1]} 11... Be7 {[%clk 0:01:09]} 12. Nc3 {[%clk 0:02:15.2]} 12...
O-O {[%clk 0:01:08.7]} 13. a4 {[%clk 0:02:11.1]} 13... b4 {[%clk 0:01:08.6]} 14.
Ncd5 {[%clk 0:02:06.8]} 14... Nbxd5 {[%clk 0:01:09]} 15. Nxd5 {[%clk 0:02:04]}
15... Nxd5 {[%clk 0:01:08.9]} 16. Bxd5 {[%clk 0:02:01.3]} 16... Bxd5 {[%clk
0:01:09.1]} 17. Qxd5 {[%clk 0:02:01.9]} 17... Rc8 {[%clk 0:01:09.4]} 18. Rf2
{[%clk 0:01:58.5]} 18... Rc5 {[%clk 0:01:07.1]} 19. Qd3 {[%clk 0:01:57.4]} 19...
Qc7 {[%clk 0:01:03.7]} 20. Be3 {[%clk 0:01:49.9]} 20... Rc4 {[%clk 0:01:02.3]}
21. Rd2 {[%clk 0:01:11.4]} 21... Rc8 {[%clk 0:01:02]} 22. g3 {[%clk 0:01:00.5]}
22... Rxc2 {[%clk 0:00:52.9]} 23. Qxa6 {[%clk 0:00:52.7]} 23... Rxd2 {[%clk
0:00:47.8]} 24. Bxd2 {[%clk 0:00:52.6]} 24... Qc5+ {[%clk 0:00:48]} 25. Kf1
{[%clk 0:00:47.8]} 25... Rb8 {[%clk 0:00:27.8]} 26. Qd3 {[%clk 0:00:44]} 26...
Qa5 {[%clk 0:00:23.5]} 27. b3 {[%clk 0:00:44.2]} 27... g6 {[%clk 0:00:20]} 28.
Rc1 {[%clk 0:00:43.7]} 28... Rd8 {[%clk 0:00:19]} 29. Qd5 {[%clk 0:00:40.3]}
29... Qa6+ {[%clk 0:00:17]} 30. Qc4 {[%clk 0:00:40.3]} 30... Qb7 {[%clk
0:00:16.4]} 31. Qxb4 {[%clk 0:00:40]} 31... Qa6+ {[%clk 0:00:14.9]} 32. Qc4
{[%clk 0:00:40]} 32... Qb7 {[%clk 0:00:15.3]} 33. a5 {[%clk 0:00:40.1]} 33...
Qd7 {[%clk 0:00:15.5]} 34. a6 {[%clk 0:00:39.9]} 34... Qh3+ {[%clk 0:00:16.1]}
35. Kg1 {[%clk 0:00:39.1]} 35... d5 {[%clk 0:00:16.2]} 36. exd5 {[%clk
0:00:38.8]} 36... Ra8 {[%clk 0:00:14.4]} 37. b4 {[%clk 0:00:37.6]} 37... Bd8
{[%clk 0:00:14.9]} 38. Be3 {[%clk 0:00:37.9]} 38... e4 {[%clk 0:00:11.9]} 39.
fxe4 {[%clk 0:00:36.2]} 39... Qg4 {[%clk 0:00:11.8]} 40. b5 {[%clk 0:00:34.6]}
40... Qf3 {[%clk 0:00:12.1]} 41. Bf2 {[%clk 0:00:34.8]} 41... Bg5 {[%clk
0:00:11.3]} 42. Rc3 {[%clk 0:00:30.2]} 42... Qd1+ {[%clk 0:00:10.5]} 43. Kg2
{[%clk 0:00:30.7]} 1-0